Workbook

Sheet 1.집계표(구분1)
A2: 2026학년도 1학기 연구활동종사자 정기안전교육(전체) 이수율 집계표[최종]
D3: [기준: 2026.04.02.최종]
A4: 구 분 | B4: 대학/기관 | C4: 대상자(명) | D4: 이수자(명) | E4: 미이수자(명) | F4: 이수율(%)
A5: 교원 | B5: 교원/직원 | C5: ='2.집계표(구분2)'!C7 -> 150 | D5: ='2.집계표(구분2)'!D7 -> 36 | E5: =C5-D5 -> 114 | F5: =D5/C5 -> 0.24
A6: 학부생 | B6: 전체 | C6: ='2.집계표(구분2)'!C13 -> 3674 | D6: ='2.집계표(구분2)'!D13 -> 1499 | E6: =C6-D6 -> 2175 | F6: 0.4080021775
A7: 대학원생 | B7: 전체 | C7: ='2.집계표(구분2)'!C17 -> 658 | D7: ='2.집계표(구분2)'!D17 -> 224 | E7: =C7-D7 -> 434 | F7: 0.3404255319
A8: 연구원 | B8: 미래산학협력단 | C8: ='2.집계표(구분2)'!C19 -> 29 | D8: ='2.집계표(구분2)'!D19 -> 9 | E8: =C8-D8 -> 20 | F8: 0.3103448276
A9: 합계 | C9: =SUM(C5:C8) -> 4511 | D9: =SUM(D5:D8) -> 1768 | E9: =SUM(E5:E8) -> 2743 | F9: =D9/C9 -> 0.3919308357

Sheet 2.집계표(구분2)
A2: 2026학년도 1학기 연구활동종사자 정기안전교육(전체) 이수율 집계표
D3: ='1.집계표(구분1)'!D3:F3 -> [기준: 2026.04.02.최종]
A4: 구 분 | B4: 대학/기관 | C4: 대상자(명) | D4: 이수자(명) | E4: 미이수자(명) | F4: 이수율(%)
A5: 교원 | B5: 교원 | C5: ='3. 교육이수 현황(소속 기준)'!E5 -> 139 | D5: ='3. 교육이수 현황(소속 기준)'!F5 -> 33 | E5: =C5-D5 -> 106 | F5: =D5/C5 -> 0.2374100719
A6: 직원 | B6: 실습지원 직원 | C6: ='3. 교육이수 현황(소속 기준)'!E7 -> 11 | D6: ='3. 교육이수 현황(소속 기준)'!F7 -> 3 | E6: =C6-D6 -> 8 | F6: =D6/C6 -> 0.2727272727
A7: 소 계 | C7: =SUM(C5:C6) -> 150 | D7: =SUM(D5:D6) -> 36 | E7: =SUM(C7-D7) -> 114 | F7: =D7/C7 -> 0.24
A8: 학부생 | B8: 글로벌창의융합대학 디자인예술학부 | C8: ='3. 교육이수 현황(소속 기준)'!E76+'3. 교육이수 현황(소속 기준)'!E77+'3. 교육이수 현황(소속 기준)'!E78+'3. 교육이수 현황(소속 기준)'!E79+'3. 교육이수 현황(소속 기준)'!E80+'3. 교육이수 현황(소속 기준)'!E116+'3. 교육이수 현황(소속 기준)'!E117+'3. 교육이수 현황(소속 기준)'!E118+'3. 교육이수 현황(소속 기준)'!E119 -> 261 | D8: ='3. 교육이수 현황(소속 기준)'!F76+'3. 교육이수 현황(소속 기준)'!F77+'3. 교육이수 현황(소속 기준)'!F78+'3. 교육이수 현황(소속 기준)'!F79+'3. 교육이수 현황(소속 기준)'!F80+'3. 교육이수 현황(소속 기준)'!F116+'3. 교육이수 현황(소속 기준)'!F117+'3. 교육이수 현황(소속 기준)'!F118+'3. 교육이수 현황(소속 기준)'!F119 -> 37 | E8: =C8-D8 -> 224 | F8: =D8/C8 -> 0.1417624521
B9: 과학기술대학 (과학기술융합대학 포함) | C9: ='3. 교육이수 현황(소속 기준)'!E39+'3. 교육이수 현황(소속 기준)'!E54+'3. 교육이수 현황(소속 기준)'!E55+'3. 교육이수 현황(소속 기준)'!E56+'3. 교육이수 현황(소속 기준)'!E57+'3. 교육이수 현황(소속 기준)'!E58+'3. 교육이수 현황(소속 기준)'!E59+'3. 교육이수 현황(소속 기준)'!E60+'3. 교육이수 현황(소속 기준)'!E61+'3. 교육이수 현황(소속 기준)'!E62+'3. 교육이수 현황(소속 기준)'!E63+'3. 교육이수 현황(소속 기준)'!E64+'3. 교육이수 현황(소속 기준)'!E65+'3. 교육이수 현황(소속 기준)'!E66+'3. 교육이수 현황(소속 기준)'!E67+'3. 교육이수 현황(소속 기준)'!E68+'3. 교육이수 현황(소속 기준)'!E69+'3. 교육이수 현황(소속 기준)'!E70+'3. 교육이수 현황(소속 기준)'!E71+'3. 교육이수 현황(소속 기준)'!E72+'3. 교육이수 현황(소속 기준)'!E73+'3. 교육이수 현황(소속 기준)'!E74+'3. 교육이수 현황(소속 기준)'!E75+'3. 교육이수 현황(소속 기준)'!E93+'3. 교육이수 현황(소속 기준)'!E94+'3. 교육이수 현황(소속 기준)'!E96+'3. 교육이수 현황(소속 기준)'!E97+'3. 교육이수 현황(소속 기준)'!E108+'3. 교육이수 현황(소속 기준)'!E109 -> 1124 | D9: ='3. 교육이수 현황(소속 기준)'!F39+'3. 교육이수 현황(소속 기준)'!F54+'3. 교육이수 현황(소속 기준)'!F55+'3. 교육이수 현황(소속 기준)'!F56+'3. 교육이수 현황(소속 기준)'!F57+'3. 교육이수 현황(소속 기준)'!F58+'3. 교육이수 현황(소속 기준)'!F59+'3. 교육이수 현황(소속 기준)'!F60+'3. 교육이수 현황(소속 기준)'!F61+'3. 교육이수 현황(소속 기준)'!F62+'3. 교육이수 현황(소속 기준)'!F63+'3. 교육이수 현황(소속 기준)'!F64+'3. 교육이수 현황(소속 기준)'!F65+'3. 교육이수 현황(소속 기준)'!F66+'3. 교육이수 현황(소속 기준)'!F67+'3. 교육이수 현황(소속 기준)'!F68+'3. 교육이수 현황(소속 기준)'!F69+'3. 교육이수 현황(소속 기준)'!F70+'3. 교육이수 현황(소속 기준)'!F71+'3. 교육이수 현황(소속 기준)'!F72+'3. 교육이수 현황(소속 기준)'!F73+'3. 교육이수 현황(소속 기준)'!F74+'3. 교육이수 현황(소속 기준)'!F75+'3. 교육이수 현황(소속 기준)'!F93+'3. 교육이수 현황(소속 기준)'!F94+'3. 교육이수 현황(소속 기준)'!F96+'3. 교육이수 현황(소속 기준)'!F97+'3. 교육이수 현황(소속 기준)'!F108+'3. 교육이수 현황(소속 기준)'!F109 -> 218 | E9: =C9-D9 -> 906 | F9: =D9/C9 -> 0.1939501779
B10: 보건과학대학 [보건과학대학원 포함] | C10: ='3. 교육이수 현황(소속 기준)'!E16+'3. 교육이수 현황(소속 기준)'!E84+'3. 교육이수 현황(소속 기준)'!E85+'3. 교육이수 현황(소속 기준)'!E86+'3. 교육이수 현황(소속 기준)'!E87+'3. 교육이수 현황(소속 기준)'!E88+'3. 교육이수 현황(소속 기준)'!E89+'3. 교육이수 현황(소속 기준)'!E90+'3. 교육이수 현황(소속 기준)'!E91+'3. 교육이수 현황(소속 기준)'!E92+'3. 교육이수 현황(소속 기준)'!E95+'3. 교육이수 현황(소속 기준)'!E98+'3. 교육이수 현황(소속 기준)'!E99+'3. 교육이수 현황(소속 기준)'!E100+'3. 교육이수 현황(소속 기준)'!E101+'3. 교육이수 현황(소속 기준)'!E102+'3. 교육이수 현황(소속 기준)'!E103+'3. 교육이수 현황(소속 기준)'!E104+'3. 교육이수 현황(소속 기준)'!E105+'3. 교육이수 현황(소속 기준)'!E106+'3. 교육이수 현황(소속 기준)'!E107+'3. 교육이수 현황(소속 기준)'!E110+'3. 교육이수 현황(소속 기준)'!E111+'3. 교육이수 현황(소속 기준)'!E112+'3. 교육이수 현황(소속 기준)'!E113+'3. 교육이수 현황(소속 기준)'!E114+'3. 교육이수 현황(소속 기준)'!E115 -> 1342 | D10: ='3. 교육이수 현황(소속 기준)'!F16+'3. 교육이수 현황(소속 기준)'!F84+'3. 교육이수 현황(소속 기준)'!F85+'3. 교육이수 현황(소속 기준)'!F86+'3. 교육이수 현황(소속 기준)'!F87+'3. 교육이수 현황(소속 기준)'!F88+'3. 교육이수 현황(소속 기준)'!F89+'3. 교육이수 현황(소속 기준)'!F90+'3. 교육이수 현황(소속 기준)'!F91+'3. 교육이수 현황(소속 기준)'!F92+'3. 교육이수 현황(소속 기준)'!F95+'3. 교육이수 현황(소속 기준)'!F98+'3. 교육이수 현황(소속 기준)'!F99+'3. 교육이수 현황(소속 기준)'!F100+'3. 교육이수 현황(소속 기준)'!F101+'3. 교육이수 현황(소속 기준)'!F102+'3. 교육이수 현황(소속 기준)'!F103+'3. 교육이수 현황(소속 기준)'!F104+'3. 교육이수 현황(소속 기준)'!F105+'3. 교육이수 현황(소속 기준)'!F106+'3. 교육이수 현황(소속 기준)'!F107+'3. 교육이수 현황(소속 기준)'!F110+'3. 교육이수 현황(소속 기준)'!F111+'3. 교육이수 현황(소속 기준)'!F112+'3. 교육이수 현황(소속 기준)'!F113+'3. 교육이수 현황(소속 기준)'!F114+'3. 교육이수 현황(소속 기준)'!F115 -> 474 | E10: 868 | F10: 0.3532041729
B11: 반도체시스템공학부 | C11: ='3. 교육이수 현황(소속 기준)'!E81+'3. 교육이수 현황(소속 기준)'!E82+'3. 교육이수 현황(소속 기준)'!E83 -> 111 | D11: ='3. 교육이수 현황(소속 기준)'!F81+'3. 교육이수 현황(소속 기준)'!F82+'3. 교육이수 현황(소속 기준)'!F83 -> 0 | E11: 111 | F11: 0
B12: RC융합대학 | C12: ='3. 교육이수 현황(소속 기준)'!E40+'3. 교육이수 현황(소속 기준)'!E41+'3. 교육이수 현황(소속 기준)'!E42+'3. 교육이수 현황(소속 기준)'!E43+'3. 교육이수 현황(소속 기준)'!E44+'3. 교육이수 현황(소속 기준)'!E45+'3. 교육이수 현황(소속 기준)'!E46+'3. 교육이수 현황(소속 기준)'!E47+'3. 교육이수 현황(소속 기준)'!E48+'3. 교육이수 현황(소속 기준)'!E49+'3. 교육이수 현황(소속 기준)'!E50+'3. 교육이수 현황(소속 기준)'!E51+'3. 교육이수 현황(소속 기준)'!E52+'3. 교육이수 현황(소속 기준)'!E53 -> 836 | D12: ='3. 교육이수 현황(소속 기준)'!F40+'3. 교육이수 현황(소속 기준)'!F41+'3. 교육이수 현황(소속 기준)'!F42+'3. 교육이수 현황(소속 기준)'!F43+'3. 교육이수 현황(소속 기준)'!F44+'3. 교육이수 현황(소속 기준)'!F45+'3. 교육이수 현황(소속 기준)'!F46+'3. 교육이수 현황(소속 기준)'!F47+'3. 교육이수 현황(소속 기준)'!F48+'3. 교육이수 현황(소속 기준)'!F49+'3. 교육이수 현황(소속 기준)'!F50+'3. 교육이수 현황(소속 기준)'!F51+'3. 교육이수 현황(소속 기준)'!F52+'3. 교육이수 현황(소속 기준)'!F53 -> 770 | E12: 66 | F12: 0.9210526316
A13: 소 계 | C13: =SUM(C8:C12) -> 3674 | D13: =SUM(D8:D12) -> 1499 | E13: =SUM(C13-D13) -> 2175 | F13: =D13/C13 -> 0.4080021775
A14: 대학원생 | B14: 글로벌창의융합대학 디자인예술학부 | C14: ='3. 교육이수 현황(소속 기준)'!E17+'3. 교육이수 현황(소속 기준)'!E19+'3. 교육이수 현황(소속 기준)'!E26+'3. 교육이수 현황(소속 기준)'!E28 -> 26 | D14: ='3. 교육이수 현황(소속 기준)'!F17+'3. 교육이수 현황(소속 기준)'!F19+'3. 교육이수 현황(소속 기준)'!F26+'3. 교육이수 현황(소속 기준)'!F28 -> 4 | E14: =C14-D14 -> 22 | F14: =D14/C15 -> 0.02424242424
B15: 과학기술대학 | C15: ='3. 교육이수 현황(소속 기준)'!E21+'3. 교육이수 현황(소속 기준)'!E27+'3. 교육이수 현황(소속 기준)'!E32+'3. 교육이수 현황(소속 기준)'!E33+'3. 교육이수 현황(소속 기준)'!E35+'3. 교육이수 현황(소속 기준)'!E36+'3. 교육이수 현황(소속 기준)'!E37+'3. 교육이수 현황(소속 기준)'!E38 -> 165 | D15: ='3. 교육이수 현황(소속 기준)'!F21+'3. 교육이수 현황(소속 기준)'!F27+'3. 교육이수 현황(소속 기준)'!F32+'3. 교육이수 현황(소속 기준)'!F33+'3. 교육이수 현황(소속 기준)'!F35+'3. 교육이수 현황(소속 기준)'!F36+'3. 교육이수 현황(소속 기준)'!F37+'3. 교육이수 현황(소속 기준)'!F38 -> 68 | E15: =C15-D15 -> 97 | F15: =D15/C16 -> 0.1456102784
B16: 보건과학대학 [보건과학대학원 포함] | C16: ='3. 교육이수 현황(소속 기준)'!E8+'3. 교육이수 현황(소속 기준)'!E9+'3. 교육이수 현황(소속 기준)'!E10+'3. 교육이수 현황(소속 기준)'!E11+'3. 교육이수 현황(소속 기준)'!E12+'3. 교육이수 현황(소속 기준)'!E13+'3. 교육이수 현황(소속 기준)'!E14+'3. 교육이수 현황(소속 기준)'!E15+'3. 교육이수 현황(소속 기준)'!E18+'3. 교육이수 현황(소속 기준)'!E20+'3. 교육이수 현황(소속 기준)'!E22+'3. 교육이수 현황(소속 기준)'!E23+'3. 교육이수 현황(소속 기준)'!E24+'3. 교육이수 현황(소속 기준)'!E25+'3. 교육이수 현황(소속 기준)'!E29+'3. 교육이수 현황(소속 기준)'!E30+'3. 교육이수 현황(소속 기준)'!E31+'3. 교육이수 현황(소속 기준)'!E34 -> 467 | D16: ='3. 교육이수 현황(소속 기준)'!F8+'3. 교육이수 현황(소속 기준)'!F9+'3. 교육이수 현황(소속 기준)'!F10+'3. 교육이수 현황(소속 기준)'!F11+'3. 교육이수 현황(소속 기준)'!F12+'3. 교육이수 현황(소속 기준)'!F13+'3. 교육이수 현황(소속 기준)'!F14+'3. 교육이수 현황(소속 기준)'!F15+'3. 교육이수 현황(소속 기준)'!F18+'3. 교육이수 현황(소속 기준)'!F20+'3. 교육이수 현황(소속 기준)'!F22+'3. 교육이수 현황(소속 기준)'!F23+'3. 교육이수 현황(소속 기준)'!F24+'3. 교육이수 현황(소속 기준)'!F25+'3. 교육이수 현황(소속 기준)'!F29+'3. 교육이수 현황(소속 기준)'!F30+'3. 교육이수 현황(소속 기준)'!F31+'3. 교육이수 현황(소속 기준)'!F34 -> 152 | E16: 315 | F16: 0.2310030395
A17: 소 계 | C17: =SUM(C14:C16) -> 658 | D17: =SUM(D14:D16) -> 224 | E17: =SUM(C17-D17) -> 434 | F17: =D17/C17 -> 0.3404255319
A18: 연구원 | B18: 미래산학협력단 | C18: ='3. 교육이수 현황(소속 기준)'!E6 -> 29 | D18: ='3. 교육이수 현황(소속 기준)'!F6 -> 9 | E18: =C18-D18 -> 20 | F18: =D18/C18 -> 0.3103448276
A19: 소 계 | C19: =C18 -> 29 | D19: =D18 -> 9 | E19: 20 | F19: =D19/C19 -> 0.3103448276
A20: 합계 | C20: =SUM(C7+C13+C17+C19) -> 4511 | D20: =SUM(D7+D13+D17+D19) -> 1768 | E20: =SUM(C20-D20) -> 2743 | F20: 0.3919308357

Sheet 3. 교육이수 현황(소속 기준)
A2: 2026학년도 1학기 연구활동종사자 정기안전교육(전체) 이수율 현황[소속 기준]
E3: [기준: 2026.04.02.최종]
A4: 순번 | B4: 소속1 | C4: 소속2 | D4: 소속3 | E4: 대상자 | F4: 이수자 | G4: 미이수자 | H4: 이수율
A5: 1 | B5: 교직원 | C5: 전임교원 | D5: 전임교원 | E5: 139 | F5: 33 | G5: =E5-F5 -> 106 | H5: =F5/E5 -> 0.2374100719
A6: 2 | B6: 소속외연구실 | C6: 미래산학협력단 | D6: 미래산학협력단 | E6: 29 | F6: 9 | G6: =E6-F6 -> 20 | H6: =F6/E6 -> 0.3103448276
A7: 3 | B7: 직원 | C7: 실습지원 직원 | D7: 실습지원 직원 | E7: 11 | F7: 3 | G7: 8 | H7: 0.2727272727
A8: 4 | B8: 보건과학대학원 | C8: 보건과학대학원 | D8: 과학수사학전공 | E8: 18 | F8: 0 | G8: 18 | H8: 0
A9: 5 | B9: 보건과학대학원 | C9: 보건과학대학원 | D9: 구강건강증진학전공 | E9: 13 | F9: 3 | G9: 10 | H9: 0.2307692308
A10: 6 | B10: 보건과학대학원 | C10: 보건과학대학원 | D10: 보건관리학전공 | E10: 29 | F10: 0 | G10: 29 | H10: 0
A11: 7 | B11: 보건과학대학원 | C11: 보건과학대학원 | D11: 의생명과학전공 | E11: 15 | F11: 0 | G11: 15 | H11: 0
A12: 8 | B12: 보건과학대학원 | C12: 보건과학대학원 | D12: 인간공학치료학전공 | E12: 17 | F12: 0 | G12: 17 | H12: 0
A13: 9 | B13: 보건과학대학원 | C13: 보건과학대학원 | D13: 헬스케어융합학전공 | E13: 6 | F13: 0 | G13: 6 | H13: 0
A14: 10 | B14: 보건과학대학원 | C14: 보건과학대학원 | D14: 환경공학전공 | E14: 12 | F14: 0 | G14: 12 | H14: 0
A15: 11 | B15: 보건환경대학원 | C15: 보건환경대학원 | D15: 보건관리학전공 | E15: 1 | F15: 0 | G15: 1 | H15: 0
A16: 12 | B16: 의과대학(치위생) | C16: 원주의과대학 | D16: 치위생학과 | E16: 4 | F16: 3 | G16: 1 | H16: 0.75
A17: 13 | B17: 일반대학원 | C17: 일반대학원(원주) | D17: 디자인경영학협동과정 | E17: 1 | F17: 0 | G17: 1 | H17: 0
A18: 14 | B18: 일반대학원 | C18: 일반대학원(원주) | D18: 디지털헬스케어학과 | E18: 4 | F18: 1 | G18: 3 | H18: 0.25
A19: 15 | B19: 일반대학원 | C19: 일반대학원(원주) | D19: 로보틱아트학과 | E19: 4 | F19: 3 | G19: 1 | H19: 0.75
A20: 16 | B20: 일반대학원 | C20: 일반대학원(원주) | D20: 물리치료학과 | E20: 67 | F20: 15 | G20: 52 | H20: 0.223880597
A21: 17 | B21: 일반대학원 | C21: 일반대학원(원주) | D21: 물리학과 | E21: 4 | F21: 1 | G21: 3 | H21: 0.25
A22: 18 | B22: 일반대학원 | C22: 일반대학원(원주) | D22: 방사선융합공학과 | E22: 39 | F22: 4 | G22: 35 | H22: 0.1025641026
A23: 19 | B23: 일반대학원 | C23: 일반대학원(원주) | D23: 방사선학과 | E23: 1 | F23: 0 | G23: 1 | H23: 0
A24: 20 | B24: 일반대학원 | C24: 일반대학원(원주) | D24: 보건정책 및 관리학협동과정 | E24: 12 | F24: 0 | G24: 12 | H24: 0
A25: 21 | B25: 일반대학원 | C25: 일반대학원(원주) | D25: 보건행정학과 | E25: 55 | F25: 7 | G25: 48 | H25: 0.1272727273
A26: 22 | B26: 일반대학원 | C26: 일반대학원(원주) | D26: 산업디자인학과 | E26: 6 | F26: 0 | G26: 6 | H26: 0
A27: 23 | B27: 일반대학원 | C27: 일반대학원(원주) | D27: 생명과학기술학 | E27: 20 | F27: 8 | G27: 12 | H27: 0.4
A28: 24 | B28: 일반대학원 | C28: 일반대학원(원주) | D28: 시각디자인학과 | E28: 15 | F28: 1 | G28: 14 | H28: 0.06666666667
A29: 25 | B29: 일반대학원 | C29: 일반대학원(원주) | D29: 의공학과 | E29: 67 | F29: 30 | G29: 37 | H29: 0.447761194
A30: 26 | B30: 일반대학원 | C30: 일반대학원(원주) | D30: 임상병리학과 | E30: 22 | F30: 18 | G30: 4 | H30: 0.8181818182
A31: 27 | B31: 일반대학원 | C31: 일반대학원(원주) | D31: 작업치료학과 | E31: 69 | F31: 57 | G31: 12 | H31: 0.8260869565
A32: 28 | B32: 일반대학원 | C32: 일반대학원(원주) | D32: 전산학과 | E32: 40 | F32: 12 | G32: 28 | H32: 0.3
A33: 29 | B33: 일반대학원 | C33: 일반대학원(원주) | D33: 정보통계학과 | E33: 6 | F33: 4 | G33: 2 | H33: 0.6666666667
A34: 30 | B34: 일반대학원 | C34: 일반대학원(원주) | D34: 치위생학과 | E34: 20 | F34: 17 | G34: 3 | H34: 0.85
A35: 31 | B35: 일반대학원 | C35: 일반대학원(원주) | D35: 패키징학과 | E35: 36 | F35: 2 | G35: 34 | H35: 0.05555555556
A36: 32 | B36: 일반대학원 | C36: 일반대학원(원주) | D36: 화학과 | E36: 17 | F36: 16 | G36: 1 | H36: 0.9411764706
A37: 33 | B37: 일반대학원 | C37: 일반대학원(원주) | D37: 환경공학과 | E37: 12 | F37: 7 | G37: 5 | H37: 0.5833333333
A38: 34 | B38: 일반대학원 | C38: 일반대학원(원주) | D38: 환경에너지공학과 | E38: 30 | F38: 18 | G38: 12 | H38: 0.6
A39: 35 | B39: 학부 | C39: 인공지능융합대학 | D39: 글로벌융합공학부 | E39: 1 | F39: 1 | G39: 0 | H39: 1
A40: 36 | B40: 학부(미래) | C40: RC융합대학 | D40: AI반도체학부 | E40: 49 | F40: 44 | G40: 5 | H40: 0.8979591837
A41: 37 | B41: 학부(미래) | C41: RC융합대학 | D41: AI보건정보관리학과 | E41: 30 | F41: 28 | G41: 2 | H41: 0.9333333333
A42: 38 | B42: 학부(미래) | C42: RC융합대학 | D42: 데이터사이언스학부 | E42: 37 | F42: 31 | G42: 6 | H42: 0.8378378378
A43: 39 | B43: 학부(미래) | C43: RC융합대학 | D43: 디자인예술학부 | E43: 19 | F43: 18 | G43: 1 | H43: 0.9473684211
A44: 40 | B44: 학부(미래) | C44: RC융합대학 | D44: 디지털헬스케어학부 | E44: 51 | F44: 46 | G44: 5 | H44: 0.9019607843
A45: 41 | B45: 학부(미래) | C45: RC융합대학 | D45: 물리치료학과 | E45: 50 | F45: 36 | G45: 14 | H45: 0.72
A46: 42 | B46: 학부(미래) | C46: RC융합대학 | D46: 방사선학과 | E46: 32 | F46: 32 | G46: 0 | H46: 1
A47: 43 | B47: 학부(미래) | C47: RC융합대학 | D47: 소프트웨어학부 | E47: 145 | F47: 139 | G47: 6 | H47: 0.9586206897
A48: 44 | B48: 학부(미래) | C48: RC융합대학 | D48: 임상병리학과 | E48: 50 | F48: 47 | G48: 3 | H48: 0.94
A49: 45 | B49: 학부(미래) | C49: RC융합대학 | D49: 자율융합계열 | E49: 305 | F49: 286 | G49: 19 | H49: 0.937704918
A50: 46 | B50: 학부(미래) | C50: RC융합대학 | D50: 자율융합계열(공학) | E50: 2 | F50: 0 | G50: 2 | H50: 0
A51: 47 | B51: 학부(미래) | C51: RC융합대학 | D51: 자율융합계열(자연과학) | E51: 1 | F51: 0 | G51: 1 | H51: 0
A52: 48 | B52: 학부(미래) | C52: RC융합대학 | D52: 작업치료학과 | E52: 37 | F52: 35 | G52: 2 | H52: 0.9459459459
A53: 49 | B53: 학부(미래) | C53: RC융합대학 | D53: 치위생학과 | E53: 28 | F53: 28 | G53: 0 | H53: 1
A54: 50 | B54: 학부(미래) | C54: 과학기술대학 | D54: 물리학 | E54: 9 | F54: 0 | G54: 9 | H54: 0
A55: 51 | B55: 학부(미래) | C55: 과학기술대학 | D55: 생명과학 | E55: 4 | F55: 1 | G55: 3 | H55: 0.25
A56: 52 | B56: 학부(미래) | C56: 과학기술대학 | D56: 생명과학기술학부 | E56: 4 | F56: 0 | G56: 4 | H56: 0
A57: 53 | B57: 학부(미래) | C57: 과학기술대학 | D57: 수학 | E57: 2 | F57: 0 | G57: 2 | H57: 0
A58: 54 | B58: 학부(미래) | C58: 과학기술대학 | D58: 응용생명과학 | E58: 11 | F58: 2 | G58: 9 | H58: 0.1818181818
A59: 55 | B59: 학부(미래) | C59: 과학기술대학 | D59: 정보통계학 | E59: 10 | F59: 0 | G59: 10 | H59: 0
A60: 56 | B60: 학부(미래) | C60: 과학기술대학 | D60: 컴퓨터공학 | E60: 5 | F60: 1 | G60: 4 | H60: 0.2
A61: 57 | B61: 학부(미래) | C61: 과학기술대학 | D61: 컴퓨터정보통신공학부 | E61: 35 | F61: 2 | G61: 33 | H61: 0.05714285714
A62: 58 | B62: 학부(미래) | C62: 과학기술대학 | D62: 패키징학 | E62: 10 | F62: 3 | G62: 7 | H62: 0.3
A63: 59 | B63: 학부(미래) | C63: 과학기술대학 | D63: 화학및의화학 | E63: 14 | F63: 6 | G63: 8 | H63: 0.4285714286
A64: 60 | B64: 학부(미래) | C64: 과학기술융합대학 | D64: 과학기술융합대학 | E64: 1 | F64: 0 | G64: 1 | H64: 0
A65: 61 | B65: 학부(미래) | C65: 과학기술융합대학 | D65: AI반도체학부 | E65: 1 | F65: 0 | G65: 1 | H65: 0
A66: 62 | B66: 학부(미래) | C66: 과학기술융합대학 | D66: AI반도체학전공 | E66: 47 | F66: 3 | G66: 44 | H66: 0.06382978723
A67: 63 | B67: 학부(미래) | C67: 과학기술융합대학 | D67: 물리및공학물리학전공 | E67: 51 | F67: 5 | G67: 46 | H67: 0.09803921569
A68: 64 | B68: 학부(미래) | C68: 과학기술융합대학 | D68: 생명과학기술학부 | E68: 4 | F68: 0 | G68: 4 | H68: 0
A69: 65 | B69: 학부(미래) | C69: 과학기술융합대학 | D69: 생명과학기술학전공 | E69: 195 | F69: 52 | G69: 143 | H69: 0.2666666667
A70: 66 | B70: 학부(미래) | C70: 과학기술융합대학 | D70: 친환경에너지공학전공 | E70: 50 | F70: 5 | G70: =E70-F70 -> 45 | H70: =F70/E70 -> 0.1
A71: 67 | B71: 학부(미래) | C71: 과학기술융합대학 | D71: 패키징및물류학심화전공 | E71: 1 | F71: 0 | G71: 1 | H71: 0
A72: 68 | B72: 학부(미래) | C72: 과학기술융합대학 | D72: 패키징및물류학전공 | E72: 68 | F72: 29 | G72: 39 | H72: 0.4264705882
A73: 69 | B73: 학부(미래) | C73: 과학기술융합대학 | D73: 화학및의화학전공 | E73: 111 | F73: 72 | G73: 39 | H73: 0.6486486486
A74: 70 | B74: 학부(미래) | C74: 과학기술융합대학 | D74: 환경공학전공 | E74: 46 | F74: 13 | G74: 33 | H74: 0.2826086957
A75: 71 | B75: 학부(미래) | C75: 과학기술융합대학 | D75: 환경에너지공학부 | E75: 3 | F75: 0 | G75: 3 | H75: 0
A76: 72 | B76: 학부(미래) | C76: 글로벌창의융합대학 | D76: 고위자과정 | E76: 2 | F76: 0 | G76: 2 | H76: 0
A77: 73 | B77: 학부(미래) | C77: 글로벌창의융합대학 | D77: 디자인예술학부 | E77: 1 | F77: 0 | G77: 1 | H77: 0
A78: 74 | B78: 학부(미래) | C78: 글로벌창의융합대학 | D78: 디지털아트학전공 | E78: 30 | F78: 17 | G78: 13 | H78: 0.5666666667
A79: 75 | B79: 학부(미래) | C79: 글로벌창의융합대학 | D79: 산업디자인학전공 | E79: 63 | F79: 2 | G79: 61 | H79: 0.03174603175
A80: 76 | B80: 학부(미래) | C80: 글로벌창의융합대학 | D80: 시각디자인학 | E80: 120 | F80: 13 | G80: 107 | H80: 0.1083333333
A81: 77 | B81: 학부(미래) | C81: 반도체시스템공학부 | D81: 반도체시스템융합공학전공 | E81: 46 | F81: 0 | G81: 46 | H81: 0
A82: 78 | B82: 학부(미래) | C82: 반도체시스템공학부 | D82: 반도체인프라및환경융합전공 | E82: 11 | F82: 0 | G82: 11 | H82: 0
A83: 79 | B83: 학부(미래) | C83: 반도체시스템공학부 | D83: 응용전기전자융합공학전공 | E83: 54 | F83: 0 | G83: 54 | H83: 0
A84: 80 | B84: 학부(미래) | C84: 보건과학대학 | D84: 물리치료학과 | E84: 7 | F84: 1 | G84: 6 | H84: 0.1428571429
A85: 81 | B85: 학부(미래) | C85: 보건과학대학 | D85: 방사선학과 | E85: 2 | F85: 0 | G85: 2 | H85: 0
A86: 82 | B86: 학부(미래) | C86: 보건과학대학 | D86: 보건.환경.의공학부 | E86: 1 | F86: 0 | G86: 1 | H86: 0
A87: 83 | B87: 학부(미래) | C87: 보건과학대학 | D87: 보건과학부 분자진단과학전공 | E87: 18 | F87: 0 | G87: 18 | H87: 0
A88: 84 | B88: 학부(미래) | C88: 보건과학대학 | D88: 보건행정학과 | E88: 3 | F88: 0 | G88: 3 | H88: 0
A89: 85 | B89: 학부(미래) | C89: 보건과학대학 | D89: 의공학부 | E89: 23 | F89: 2 | G89: 21 | H89: 0.08695652174
A90: 86 | B90: 학부(미래) | C90: 보건과학대학 | D90: 의료시스템공학 | E90: 1 | F90: 0 | G90: 1 | H90: 0
A91: 87 | B91: 학부(미래) | C91: 보건과학대학 | D91: 임상병리학과 | E91: 1 | F91: 1 | G91: 0 | H91: 1
A92: 88 | B92: 학부(미래) | C92: 보건과학대학 | D92: 작업치료학과 | E92: 4 | F92: 4 | G92: 0 | H92: 1
A93: 89 | B93: 학부(미래) | C93: 보건과학대학 | D93: 친환경에너지공학 | E93: 1 | F93: 0 | G93: 1 | H93: 0
A94: 90 | B94: 학부(미래) | C94: 보건과학대학 | D94: 환경공학부 | E94: 23 | F94: 2 | G94: 21 | H94: 0.08695652174
A95: 91 | B95: 학부(미래) | C95: 소프트웨어디지털헬스케어융합대학 | D95: AI보건정보관리학과 | E95: 57 | F95: 2 | G95: 55 | H95: 0.0350877193
A96: 92 | B96: 학부(미래) | C96: 소프트웨어디지털헬스케어융합대학 | D96: 데이터사이언스학부 | E96: 5 | F96: 0 | G96: 5 | H96: 0
A97: 93 | B97: 학부(미래) | C97: 소프트웨어디지털헬스케어융합대학 | D97: 데이터사이언스학전공 | E97: 86 | F97: 5 | G97: 81 | H97: 0.05813953488
A98: 94 | B98: 학부(미래) | C98: 소프트웨어디지털헬스케어융합대학 | D98: 디지털헬스케어전공 | E98: 138 | F98: 7 | G98: 131 | H98: 0.05072463768
A99: 95 | B99: 학부(미래) | C99: 소프트웨어디지털헬스케어융합대학 | D99: 디지털헬스케어학부 | E99: 2 | F99: 0 | G99: 2 | H99: 0
A100: 96 | B100: 학부(미래) | C100: 소프트웨어디지털헬스케어융합대학 | D100: 물리치료학과 | E100: 121 | F100: 3 | G100: 118 | H100: 0.02479338843
A101: 97 | B101: 학부(미래) | C101: 소프트웨어디지털헬스케어융합대학 | D101: 바이오공학전공 | E101: 48 | F101: 5 | G101: 43 | H101: 0.1041666667
A102: 98 | B102: 학부(미래) | C102: 소프트웨어디지털헬스케어융합대학 | D102: 방사선학과 | E102: 123 | F102: 5 | G102: 118 | H102: 0.0406504065
A103: 99 | B103: 학부(미래) | C103: 소프트웨어디지털헬스케어융합대학 | D103: 보건과학부 | E103: 1 | F103: 0 | G103: 1 | H103: 0
A104: 100 | B104: 학부(미래) | C104: 소프트웨어디지털헬스케어융합대학 | D104: 보건과학부 재활보건학전공 | E104: 36 | F104: 0 | G104: 36 | H104: 0
A105: 101 | B105: 학부(미래) | C105: 소프트웨어디지털헬스케어융합대학 | D105: 보건의료정보관리학전공 | E105: 21 | F105: 0 | G105: 21 | H105: 0
A106: 102 | B106: 학부(미래) | C106: 소프트웨어디지털헬스케어융합대학 | D106: 보건행정학부 | E106: 5 | F106: 0 | G106: 5 | H106: 0
A107: 103 | B107: 학부(미래) | C107: 소프트웨어디지털헬스케어융합대학 | D107: 보건행정학전공 | E107: 136 | F107: 7 | G107: 129 | H107: 0.05147058824
A108: 104 | B108: 학부(미래) | C108: 소프트웨어디지털헬스케어융합대학 | D108: 소프트웨어전공 | E108: 315 | F108: 16 | G108: 299 | H108: 0.05079365079
A109: 105 | B109: 학부(미래) | C109: 소프트웨어디지털헬스케어융합대학 | D109: 소프트웨어학부 | E109: 11 | F109: 0 | G109: 11 | H109: 0
A110: 106 | B110: 학부(미래) | C110: 소프트웨어디지털헬스케어융합대학 | D110: 의공학부 | E110: 1 | F110: 0 | G110: 1 | H110: 0
A111: 107 | B111: 학부(미래) | C111: 소프트웨어디지털헬스케어융합대학 | D111: 의공학전공 | E111: 188 | F111: 69 | G111: 119 | H111: 0.3670212766
A112: 108 | B112: 학부(미래) | C112: 소프트웨어디지털헬스케어융합대학 | D112: 임상병리학과 | E112: 170 | F112: 167 | G112: 3 | H112: 0.9823529412
A113: 109 | B113: 학부(미래) | C113: 소프트웨어디지털헬스케어융합대학 | D113: 작업치료학과 | E113: 117 | F113: 114 | G113: 3 | H113: 0.9743589744
A114: 110 | B114: 학부(미래) | C114: 소프트웨어디지털헬스케어융합대학 | D114: 치위생학과 | E114: 95 | F114: 84 | G114: 11 | H114: 0.8842105263
A115: 111 | B115: 학부(미래) | C115: 소프트웨어디지털헬스케어융합대학 | D115: 헬스케어빅데이터전공 | E115: 19 | F115: 0 | G115: 19 | H115: 0
A116: 112 | B116: 학부(미래) | C116: 인문예술대학 | D116: 디자인예술학부 | E116: 39 | F116: 5 | G116: 34 | H116: 0.1282051282
A117: 113 | B117: 학부(미래) | C117: 인문예술대학 | D117: 디지털아트학 | E117: 1 | F117: 0 | G117: 1 | H117: 0
A118: 114 | B118: 학부(미래) | C118: 인문예술대학 | D118: 산업디자인학 | E118: 1 | F118: 0 | G118: 1 | H118: 0
A119: 115 | B119: 학부(미래) | C119: 인문예술대학 | D119: 시각디자인학 | E119: 4 | F119: 0 | G119: 4 | H119: 0
A120: 합계(명) | E120: =SUM(E5:E119) -> 4511 | F120: =SUM(F5:F119) -> 1768 | G120: =SUM(G5:G119) -> 2743 | H120: =F120/E120 -> 0.3919308357

Sheet 4. 교육이수 현황(이수율 기준)
A2: 2026학년도 1학기 연구활동종사자 정기안전교육(전체) 이수율 현황[이수율 기준]
F3: [기준: 2026.04.02.최종]
A4: 순번 | B4: 소속1 | C4: 소속2 | D4: 소속3 | E4: 대상자 | F4: 이수자 | G4: 미이수자 | H4: 이수율
A5: 1 | B5: 학부 | C5: 인공지능융합대학 | D5: 글로벌융합공학부 | E5: 1 | F5: 1 | G5: =E5-F5 -> 0 | H5: =F5/E5 -> 1
A6: 2 | B6: 학부(미래) | C6: RC융합대학 | D6: 방사선학과 | E6: 32 | F6: 32 | G6: =E6-F6 -> 0 | H6: =F6/E6 -> 1
A7: 3 | B7: 학부(미래) | C7: RC융합대학 | D7: 치위생학과 | E7: 28 | F7: 28 | G7: =E7-F7 -> 0 | H7: =F7/E7 -> 1
A8: 4 | B8: 학부(미래) | C8: 보건과학대학 | D8: 임상병리학과 | E8: 1 | F8: 1 | G8: =E8-F8 -> 0 | H8: =F8/E8 -> 1
A9: 5 | B9: 학부(미래) | C9: 보건과학대학 | D9: 작업치료학과 | E9: 4 | F9: 4 | G9: =E9-F9 -> 0 | H9: =F9/E9 -> 1
A10: 6 | B10: 학부(미래) | C10: 소프트웨어디지털헬스케어융합대학 | D10: 임상병리학과 | E10: 170 | F10: 167 | G10: =E10-F10 -> 3 | H10: =F10/E10 -> 0.9823529412
A11: 7 | B11: 학부(미래) | C11: 소프트웨어디지털헬스케어융합대학 | D11: 작업치료학과 | E11: 117 | F11: 114 | G11: =E11-F11 -> 3 | H11: =F11/E11 -> 0.9743589744
A12: 8 | B12: 학부(미래) | C12: RC융합대학 | D12: 소프트웨어학부 | E12: 145 | F12: 139 | G12: =E12-F12 -> 6 | H12: =F12/E12 -> 0.9586206897
A13: 9 | B13: 학부(미래) | C13: RC융합대학 | D13: 디자인예술학부 | E13: 19 | F13: 18 | G13: =E13-F13 -> 1 | H13: =F13/E13 -> 0.9473684211
A14: 10 | B14: 학부(미래) | C14: RC융합대학 | D14: 작업치료학과 | E14: 37 | F14: 35 | G14: =E14-F14 -> 2 | H14: =F14/E14 -> 0.9459459459
A15: 11 | B15: 일반대학원 | C15: 일반대학원(원주) | D15: 화학과 | E15: 17 | F15: 16 | G15: =E15-F15 -> 1 | H15: =F15/E15 -> 0.9411764706
A16: 12 | B16: 학부(미래) | C16: RC융합대학 | D16: 임상병리학과 | E16: 50 | F16: 47 | G16: =E16-F16 -> 3 | H16: =F16/E16 -> 0.94
A17: 13 | B17: 학부(미래) | C17: RC융합대학 | D17: 자율융합계열 | E17: 305 | F17: 286 | G17: =E17-F17 -> 19 | H17: =F17/E17 -> 0.937704918
A18: 14 | B18: 학부(미래) | C18: RC융합대학 | D18: AI보건정보관리학과 | E18: 30 | F18: 28 | G18: =E18-F18 -> 2 | H18: =F18/E18 -> 0.9333333333
A19: 15 | B19: 학부(미래) | C19: RC융합대학 | D19: 디지털헬스케어학부 | E19: 51 | F19: 46 | G19: =E19-F19 -> 5 | H19: =F19/E19 -> 0.9019607843
A20: 16 | B20: 학부(미래) | C20: RC융합대학 | D20: AI반도체학부 | E20: 49 | F20: 44 | G20: =E20-F20 -> 5 | H20: =F20/E20 -> 0.8979591837
A21: 17 | B21: 학부(미래) | C21: 소프트웨어디지털헬스케어융합대학 | D21: 치위생학과 | E21: 95 | F21: 84 | G21: =E21-F21 -> 11 | H21: =F21/E21 -> 0.8842105263
A22: 18 | B22: 일반대학원 | C22: 일반대학원(원주) | D22: 치위생학과 | E22: 20 | F22: 17 | G22: =E22-F22 -> 3 | H22: =F22/E22 -> 0.85
A23: 19 | B23: 학부(미래) | C23: RC융합대학 | D23: 데이터사이언스학부 | E23: 37 | F23: 31 | G23: =E23-F23 -> 6 | H23: =F23/E23 -> 0.8378378378
A24: 20 | B24: 일반대학원 | C24: 일반대학원(원주) | D24: 작업치료학과 | E24: 69 | F24: 57 | G24: =E24-F24 -> 12 | H24: =F24/E24 -> 0.8260869565
A25: 21 | B25: 일반대학원 | C25: 일반대학원(원주) | D25: 임상병리학과 | E25: 22 | F25: 18 | G25: =E25-F25 -> 4 | H25: =F25/E25 -> 0.8181818182
A26: 22 | B26: 의과대학(치위생) | C26: 원주의과대학 | D26: 치위생학과 | E26: 4 | F26: 3 | G26: =E26-F26 -> 1 | H26: =F26/E26 -> 0.75
A27: 23 | B27: 일반대학원 | C27: 일반대학원(원주) | D27: 로보틱아트학과 | E27: 4 | F27: 3 | G27: =E27-F27 -> 1 | H27: =F27/E27 -> 0.75
A28: 24 | B28: 학부(미래) | C28: RC융합대학 | D28: 물리치료학과 | E28: 50 | F28: 36 | G28: =E28-F28 -> 14 | H28: =F28/E28 -> 0.72
A29: 25 | B29: 일반대학원 | C29: 일반대학원(원주) | D29: 정보통계학과 | E29: 6 | F29: 4 | G29: =E29-F29 -> 2 | H29: =F29/E29 -> 0.6666666667
A30: 26 | B30: 학부(미래) | C30: 과학기술융합대학 | D30: 화학및의화학전공 | E30: 111 | F30: 72 | G30: =E30-F30 -> 39 | H30: =F30/E30 -> 0.6486486486
A31: 27 | B31: 일반대학원 | C31: 일반대학원(원주) | D31: 환경에너지공학과 | E31: 30 | F31: 18 | G31: =E31-F31 -> 12 | H31: =F31/E31 -> 0.6
A32: 28 | B32: 일반대학원 | C32: 일반대학원(원주) | D32: 환경공학과 | E32: 12 | F32: 7 | G32: =E32-F32 -> 5 | H32: =F32/E32 -> 0.5833333333
A33: 29 | B33: 학부(미래) | C33: 글로벌창의융합대학 | D33: 디지털아트학전공 | E33: 30 | F33: 17 | G33: =E33-F33 -> 13 | H33: =F33/E33 -> 0.5666666667
A34: 30 | B34: 일반대학원 | C34: 일반대학원(원주) | D34: 의공학과 | E34: 67 | F34: 30 | G34: =E34-F34 -> 37 | H34: =F34/E34 -> 0.447761194
A35: 31 | B35: 학부(미래) | C35: 과학기술대학 | D35: 화학및의화학 | E35: 14 | F35: 6 | G35: =E35-F35 -> 8 | H35: =F35/E35 -> 0.4285714286
A36: 32 | B36: 학부(미래) | C36: 과학기술융합대학 | D36: 패키징및물류학전공 | E36: 68 | F36: 29 | G36: =E36-F36 -> 39 | H36: =F36/E36 -> 0.4264705882
A37: 33 | B37: 일반대학원 | C37: 일반대학원(원주) | D37: 생명과학기술학 | E37: 20 | F37: 8 | G37: =E37-F37 -> 12 | H37: =F37/E37 -> 0.4
A38: 34 | B38: 학부(미래) | C38: 소프트웨어디지털헬스케어융합대학 | D38: 의공학전공 | E38: 188 | F38: 69 | G38: =E38-F38 -> 119 | H38: =F38/E38 -> 0.3670212766
A39: 35 | B39: 소속외연구실 | C39: 미래산학협력단 | D39: 미래산학협력단 | E39: 29 | F39: 9 | G39: =E39-F39 -> 20 | H39: =F39/E39 -> 0.3103448276
A40: 36 | B40: 일반대학원 | C40: 일반대학원(원주) | D40: 전산학과 | E40: 40 | F40: 12 | G40: =E40-F40 -> 28 | H40: =F40/E40 -> 0.3
A41: 37 | B41: 학부(미래) | C41: 과학기술대학 | D41: 패키징학 | E41: 10 | F41: 3 | G41: =E41-F41 -> 7 | H41: =F41/E41 -> 0.3
A42: 38 | B42: 학부(미래) | C42: 과학기술융합대학 | D42: 환경공학전공 | E42: 46 | F42: 13 | G42: =E42-F42 -> 33 | H42: =F42/E42 -> 0.2826086957
A43: 39 | B43: 직원 | C43: 실습지원 직원 | D43: 실습지원 직원 | E43: 11 | F43: 3 | G43: =E43-F43 -> 8 | H43: =F43/E43 -> 0.2727272727
A44: 40 | B44: 학부(미래) | C44: 과학기술융합대학 | D44: 생명과학기술학전공 | E44: 195 | F44: 52 | G44: =E44-F44 -> 143 | H44: =F44/E44 -> 0.2666666667
A45: 41 | B45: 일반대학원 | C45: 일반대학원(원주) | D45: 디지털헬스케어학과 | E45: 4 | F45: 1 | G45: =E45-F45 -> 3 | H45: =F45/E45 -> 0.25
A46: 42 | B46: 일반대학원 | C46: 일반대학원(원주) | D46: 물리학과 | E46: 4 | F46: 1 | G46: =E46-F46 -> 3 | H46: =F46/E46 -> 0.25
A47: 43 | B47: 학부(미래) | C47: 과학기술대학 | D47: 생명과학 | E47: 4 | F47: 1 | G47: =E47-F47 -> 3 | H47: =F47/E47 -> 0.25
A48: 44 | B48: 교직원 | C48: 전임교원 | D48: 전임교원 | E48: 139 | F48: 33 | G48: =E48-F48 -> 106 | H48: =F48/E48 -> 0.2374100719
A49: 45 | B49: 보건과학대학원 | C49: 보건과학대학원 | D49: 구강건강증진학전공 | E49: 13 | F49: 3 | G49: =E49-F49 -> 10 | H49: =F49/E49 -> 0.2307692308
A50: 46 | B50: 일반대학원 | C50: 일반대학원(원주) | D50: 물리치료학과 | E50: 67 | F50: 15 | G50: =E50-F50 -> 52 | H50: =F50/E50 -> 0.223880597
A51: 47 | B51: 학부(미래) | C51: 과학기술대학 | D51: 컴퓨터공학 | E51: 5 | F51: 1 | G51: =E51-F51 -> 4 | H51: =F51/E51 -> 0.2
A52: 48 | B52: 학부(미래) | C52: 과학기술대학 | D52: 응용생명과학 | E52: 11 | F52: 2 | G52: =E52-F52 -> 9 | H52: =F52/E52 -> 0.1818181818
A53: 49 | B53: 학부(미래) | C53: 보건과학대학 | D53: 물리치료학과 | E53: 7 | F53: 1 | G53: =E53-F53 -> 6 | H53: =F53/E53 -> 0.1428571429
A54: 50 | B54: 학부(미래) | C54: 인문예술대학 | D54: 디자인예술학부 | E54: 39 | F54: 5 | G54: =E54-F54 -> 34 | H54: =F54/E54 -> 0.1282051282
A55: 51 | B55: 일반대학원 | C55: 일반대학원(원주) | D55: 보건행정학과 | E55: 55 | F55: 7 | G55: =E55-F55 -> 48 | H55: =F55/E55 -> 0.1272727273
A56: 52 | B56: 학부(미래) | C56: 글로벌창의융합대학 | D56: 시각디자인학 | E56: 120 | F56: 13 | G56: =E56-F56 -> 107 | H56: =F56/E56 -> 0.1083333333
A57: 53 | B57: 학부(미래) | C57: 소프트웨어디지털헬스케어융합대학 | D57: 바이오공학전공 | E57: 48 | F57: 5 | G57: =E57-F57 -> 43 | H57: =F57/E57 -> 0.1041666667
A58: 54 | B58: 일반대학원 | C58: 일반대학원(원주) | D58: 방사선융합공학과 | E58: 39 | F58: 4 | G58: =E58-F58 -> 35 | H58: =F58/E58 -> 0.1025641026
A59: 55 | B59: 학부(미래) | C59: 과학기술융합대학 | D59: 친환경에너지공학전공 | E59: 50 | F59: 5 | G59: =E59-F59 -> 45 | H59: =F59/E59 -> 0.1
A60: 56 | B60: 학부(미래) | C60: 과학기술융합대학 | D60: 물리및공학물리학전공 | E60: 51 | F60: 5 | G60: =E60-F60 -> 46 | H60: =F60/E60 -> 0.09803921569
A61: 57 | B61: 학부(미래) | C61: 보건과학대학 | D61: 의공학부 | E61: 23 | F61: 2 | G61: =E61-F61 -> 21 | H61: =F61/E61 -> 0.08695652174
A62: 58 | B62: 학부(미래) | C62: 보건과학대학 | D62: 환경공학부 | E62: 23 | F62: 2 | G62: =E62-F62 -> 21 | H62: =F62/E62 -> 0.08695652174
A63: 59 | B63: 일반대학원 | C63: 일반대학원(원주) | D63: 시각디자인학과 | E63: 15 | F63: 1 | G63: =E63-F63 -> 14 | H63: =F63/E63 -> 0.06666666667
A64: 60 | B64: 학부(미래) | C64: 과학기술융합대학 | D64: AI반도체학전공 | E64: 47 | F64: 3 | G64: =E64-F64 -> 44 | H64: =F64/E64 -> 0.06382978723
A65: 61 | B65: 학부(미래) | C65: 소프트웨어디지털헬스케어융합대학 | D65: 데이터사이언스학전공 | E65: 86 | F65: 5 | G65: =E65-F65 -> 81 | H65: =F65/E65 -> 0.05813953488
A66: 62 | B66: 학부(미래) | C66: 과학기술대학 | D66: 컴퓨터정보통신공학부 | E66: 35 | F66: 2 | G66: =E66-F66 -> 33 | H66: =F66/E66 -> 0.05714285714
A67: 63 | B67: 일반대학원 | C67: 일반대학원(원주) | D67: 패키징학과 | E67: 36 | F67: 2 | G67: =E67-F67 -> 34 | H67: =F67/E67 -> 0.05555555556
A68: 64 | B68: 학부(미래) | C68: 소프트웨어디지털헬스케어융합대학 | D68: 보건행정학전공 | E68: 136 | F68: 7 | G68: =E68-F68 -> 129 | H68: =F68/E68 -> 0.05147058824
A69: 65 | B69: 학부(미래) | C69: 소프트웨어디지털헬스케어융합대학 | D69: 소프트웨어전공 | E69: 315 | F69: 16 | G69: =E69-F69 -> 299 | H69: =F69/E69 -> 0.05079365079
A70: 66 | B70: 학부(미래) | C70: 소프트웨어디지털헬스케어융합대학 | D70: 디지털헬스케어전공 | E70: 138 | F70: 7 | G70: =E70-F70 -> 131 | H70: =F70/E70 -> 0.05072463768
A71: 67 | B71: 학부(미래) | C71: 소프트웨어디지털헬스케어융합대학 | D71: 방사선학과 | E71: 123 | F71: 5 | G71: =E71-F71 -> 118 | H71: =F71/E71 -> 0.0406504065
A72: 68 | B72: 학부(미래) | C72: 소프트웨어디지털헬스케어융합대학 | D72: AI보건정보관리학과 | E72: 57 | F72: 2 | G72: =E72-F72 -> 55 | H72: =F72/E72 -> 0.0350877193
A73: 69 | B73: 학부(미래) | C73: 글로벌창의융합대학 | D73: 산업디자인학전공 | E73: 63 | F73: 2 | G73: =E73-F73 -> 61 | H73: =F73/E73 -> 0.03174603175
A74: 70 | B74: 학부(미래) | C74: 소프트웨어디지털헬스케어융합대학 | D74: 물리치료학과 | E74: 121 | F74: 3 | G74: =E74-F74 -> 118 | H74: =F74/E74 -> 0.02479338843
A75: 71 | B75: 보건과학대학원 | C75: 보건과학대학원 | D75: 과학수사학전공 | E75: 18 | F75: 0 | G75: =E75-F75 -> 18 | H75: =F75/E75 -> 0
A76: 72 | B76: 보건과학대학원 | C76: 보건과학대학원 | D76: 보건관리학전공 | E76: 29 | F76: 0 | G76: =E76-F76 -> 29 | H76: =F76/E76 -> 0
A77: 73 | B77: 보건과학대학원 | C77: 보건과학대학원 | D77: 의생명과학전공 | E77: 15 | F77: 0 | G77: =E77-F77 -> 15 | H77: =F77/E77 -> 0
A78: 74 | B78: 보건과학대학원 | C78: 보건과학대학원 | D78: 인간공학치료학전공 | E78: 17 | F78: 0 | G78: =E78-F78 -> 17 | H78: =F78/E78 -> 0
A79: 75 | B79: 보건과학대학원 | C79: 보건과학대학원 | D79: 헬스케어융합학전공 | E79: 6 | F79: 0 | G79: =E79-F79 -> 6 | H79: =F79/E79 -> 0
A80: 76 | B80: 보건과학대학원 | C80: 보건과학대학원 | D80: 환경공학전공 | E80: 12 | F80: 0 | G80: =E80-F80 -> 12 | H80: =F80/E80 -> 0
A81: 77 | B81: 보건환경대학원 | C81: 보건환경대학원 | D81: 보건관리학전공 | E81: 1 | F81: 0 | G81: =E81-F81 -> 1 | H81: =F81/E81 -> 0
A82: 78 | B82: 일반대학원 | C82: 일반대학원(원주) | D82: 디자인경영학협동과정 | E82: 1 | F82: 0 | G82: =E82-F82 -> 1 | H82: =F82/E82 -> 0
A83: 79 | B83: 일반대학원 | C83: 일반대학원(원주) | D83: 방사선학과 | E83: 1 | F83: 0 | G83: =E83-F83 -> 1 | H83: =F83/E83 -> 0
A84: 80 | B84: 일반대학원 | C84: 일반대학원(원주) | D84: 보건정책 및 관리학협동과정 | E84: 12 | F84: 0 | G84: =E84-F84 -> 12 | H84: =F84/E84 -> 0
A85: 81 | B85: 일반대학원 | C85: 일반대학원(원주) | D85: 산업디자인학과 | E85: 6 | F85: 0 | G85: =E85-F85 -> 6 | H85: =F85/E85 -> 0
A86: 82 | B86: 학부(미래) | C86: RC융합대학 | D86: 자율융합계열(공학) | E86: 2 | F86: 0 | G86: =E86-F86 -> 2 | H86: =F86/E86 -> 0
A87: 83 | B87: 학부(미래) | C87: RC융합대학 | D87: 자율융합계열(자연과학) | E87: 1 | F87: 0 | G87: =E87-F87 -> 1 | H87: =F87/E87 -> 0
A88: 84 | B88: 학부(미래) | C88: 과학기술대학 | D88: 물리학 | E88: 9 | F88: 0 | G88: =E88-F88 -> 9 | H88: =F88/E88 -> 0
A89: 85 | B89: 학부(미래) | C89: 과학기술대학 | D89: 생명과학기술학부 | E89: 4 | F89: 0 | G89: =E89-F89 -> 4 | H89: =F89/E89 -> 0
A90: 86 | B90: 학부(미래) | C90: 과학기술대학 | D90: 수학 | E90: 2 | F90: 0 | G90: =E90-F90 -> 2 | H90: =F90/E90 -> 0
A91: 87 | B91: 학부(미래) | C91: 과학기술대학 | D91: 정보통계학 | E91: 10 | F91: 0 | G91: =E91-F91 -> 10 | H91: =F91/E91 -> 0
A92: 88 | B92: 학부(미래) | C92: 과학기술융합대학 | D92: 과학기술융합대학 | E92: 1 | F92: 0 | G92: =E92-F92 -> 1 | H92: =F92/E92 -> 0
A93: 89 | B93: 학부(미래) | C93: 과학기술융합대학 | D93: AI반도체학부 | E93: 1 | F93: 0 | G93: =E93-F93 -> 1 | H93: =F93/E93 -> 0
A94: 90 | B94: 학부(미래) | C94: 과학기술융합대학 | D94: 생명과학기술학부 | E94: 4 | F94: 0 | G94: =E94-F94 -> 4 | H94: =F94/E94 -> 0
A95: 91 | B95: 학부(미래) | C95: 과학기술융합대학 | D95: 패키징및물류학심화전공 | E95: 1 | F95: 0 | G95: =E95-F95 -> 1 | H95: =F95/E95 -> 0
A96: 92 | B96: 학부(미래) | C96: 과학기술융합대학 | D96: 환경에너지공학부 | E96: 3 | F96: 0 | G96: =E96-F96 -> 3 | H96: =F96/E96 -> 0
A97: 93 | B97: 학부(미래) | C97: 글로벌창의융합대학 | D97: 고위자과정 | E97: 2 | F97: 0 | G97: =E97-F97 -> 2 | H97: =F97/E97 -> 0
A98: 94 | B98: 학부(미래) | C98: 글로벌창의융합대학 | D98: 디자인예술학부 | E98: 1 | F98: 0 | G98: =E98-F98 -> 1 | H98: =F98/E98 -> 0
A99: 95 | B99: 학부(미래) | C99: 반도체시스템공학부 | D99: 반도체시스템융합공학전공 | E99: 46 | F99: 0 | G99: =E99-F99 -> 46 | H99: =F99/E99 -> 0
A100: 96 | B100: 학부(미래) | C100: 반도체시스템공학부 | D100: 반도체인프라및환경융합전공 | E100: 11 | F100: 0 | G100: =E100-F100 -> 11 | H100: =F100/E100 -> 0
A101: 97 | B101: 학부(미래) | C101: 반도체시스템공학부 | D101: 응용전기전자융합공학전공 | E101: 54 | F101: 0 | G101: =E101-F101 -> 54 | H101: =F101/E101 -> 0
A102: 98 | B102: 학부(미래) | C102: 보건과학대학 | D102: 방사선학과 | E102: 2 | F102: 0 | G102: =E102-F102 -> 2 | H102: =F102/E102 -> 0
A103: 99 | B103: 학부(미래) | C103: 보건과학대학 | D103: 보건.환경.의공학부 | E103: 1 | F103: 0 | G103: =E103-F103 -> 1 | H103: =F103/E103 -> 0
A104: 100 | B104: 학부(미래) | C104: 보건과학대학 | D104: 보건과학부 분자진단과학전공 | E104: 18 | F104: 0 | G104: =E104-F104 -> 18 | H104: =F104/E104 -> 0
A105: 101 | B105: 학부(미래) | C105: 보건과학대학 | D105: 보건행정학과 | E105: 3 | F105: 0 | G105: =E105-F105 -> 3 | H105: =F105/E105 -> 0
A106: 102 | B106: 학부(미래) | C106: 보건과학대학 | D106: 의료시스템공학 | E106: 1 | F106: 0 | G106: =E106-F106 -> 1 | H106: =F106/E106 -> 0
A107: 103 | B107: 학부(미래) | C107: 보건과학대학 | D107: 친환경에너지공학 | E107: 1 | F107: 0 | G107: =E107-F107 -> 1 | H107: =F107/E107 -> 0
A108: 104 | B108: 학부(미래) | C108: 소프트웨어디지털헬스케어융합대학 | D108: 데이터사이언스학부 | E108: 5 | F108: 0 | G108: =E108-F108 -> 5 | H108: =F108/E108 -> 0
A109: 105 | B109: 학부(미래) | C109: 소프트웨어디지털헬스케어융합대학 | D109: 디지털헬스케어학부 | E109: 2 | F109: 0 | G109: =E109-F109 -> 2 | H109: =F109/E109 -> 0
A110: 106 | B110: 학부(미래) | C110: 소프트웨어디지털헬스케어융합대학 | D110: 보건과학부 | E110: 1 | F110: 0 | G110: =E110-F110 -> 1 | H110: =F110/E110 -> 0
A111: 107 | B111: 학부(미래) | C111: 소프트웨어디지털헬스케어융합대학 | D111: 보건과학부 재활보건학전공 | E111: 36 | F111: 0 | G111: =E111-F111 -> 36 | H111: =F111/E111 -> 0
A112: 108 | B112: 학부(미래) | C112: 소프트웨어디지털헬스케어융합대학 | D112: 보건의료정보관리학전공 | E112: 21 | F112: 0 | G112: =E112-F112 -> 21 | H112: =F112/E112 -> 0
A113: 109 | B113: 학부(미래) | C113: 소프트웨어디지털헬스케어융합대학 | D113: 보건행정학부 | E113: 5 | F113: 0 | G113: =E113-F113 -> 5 | H113: =F113/E113 -> 0
A114: 110 | B114: 학부(미래) | C114: 소프트웨어디지털헬스케어융합대학 | D114: 소프트웨어학부 | E114: 11 | F114: 0 | G114: =E114-F114 -> 11 | H114: =F114/E114 -> 0
A115: 111 | B115: 학부(미래) | C115: 소프트웨어디지털헬스케어융합대학 | D115: 의공학부 | E115: 1 | F115: 0 | G115: =E115-F115 -> 1 | H115: =F115/E115 -> 0
A116: 112 | B116: 학부(미래) | C116: 소프트웨어디지털헬스케어융합대학 | D116: 헬스케어빅데이터전공 | E116: 19 | F116: 0 | G116: =E116-F116 -> 19 | H116: =F116/E116 -> 0
A117: 113 | B117: 학부(미래) | C117: 인문예술대학 | D117: 디지털아트학 | E117: 1 | F117: 0 | G117: =E117-F117 -> 1 | H117: =F117/E117 -> 0
A118: 114 | B118: 학부(미래) | C118: 인문예술대학 | D118: 산업디자인학 | E118: 1 | F118: 0 | G118: =E118-F118 -> 1 | H118: =F118/E118 -> 0
A119: 115 | B119: 학부(미래) | C119: 인문예술대학 | D119: 시각디자인학 | E119: 4 | F119: 0 | G119: =E119-F119 -> 4 | H119: =F119/E119 -> 0
A120: 합계(명) | E120: =SUM(E5:E119) -> 4511 | F120: =SUM(F5:F119) -> 1768 | G120: =SUM(G5:G119) -> 2743 | H120: =F120/E120 -> 0.3919308357
